fUSD/lending_fUSD_20260622
["ID","MTS","AMOUNT","RATE_DAILY","PERIOD"]
[426016362,1782118248000,-500.0,0.00027397,2]
[426016356,1782118248000,-500.0,0.00027397,2]
[426016357,1782118248000,-500.0,0.00027397,2]
[426016360,1782118248000,-500.0,0.00027397,2]
[426016377,1782118248000,-500.0,0.00027397,2]
[426016363,1782118248000,-637.55,0.00027397,2]
[426016364,1782118248000,-500.0,0.00027397,2]
[426016342,1782118248000,-500.0,0.00027397,2]
[426016354,1782118248000,-500.0,0.00027397,2]
[426016338,1782118248000,-633.18,0.00027397,2]
[426016319,1782118248000,-523.99,0.00027397,2]
[426016339,1782118248000,-500.0,0.00027397,2]
[426016366,1782118248000,-671.19,0.00027397,2]
[426016312,1782118248000,-500.0,0.00027397,2]
[426016314,1782118248000,-500.0,0.00027397,2]
[426016313,1782118248000,-500.0,0.00027397,2]
[426016317,1782118248000,-500.0,0.00027397,2]
[426016315,1782118248000,-500.0,0.00027397,2]
[426016316,1782118248000,-500.0,0.00027397,2]
[426016318,1782118248000,-500.0,0.00027397,2]
[426016321,1782118248000,-500.0,0.00027397,2]
[426016331,1782118248000,-730.03,0.00027397,2]
[426016320,1782118248000,-500.0,0.00027397,2]
[426016322,1782118248000,-500.0,0.00027397,2]
[426016341,1782118248000,-500.0,0.00027397,2]
[426016327,1782118248000,-4687.67,0.00027397,2]
[426016324,1782118248000,-500.0,0.00027397,2]
[426016323,1782118248000,-500.0,0.00027397,2]
[426016330,1782118248000,-530.67172327,0.00027397,2]
[426016326,1782118248000,-393.03672426,0.00027397,2]
[426016329,1782118248000,-500.0,0.00027397,2]
[426016328,1782118248000,-500.0,0.00027397,2]
[426016333,1782118248000,-500.0,0.00027397,2]
[426016336,1782118248000,-640.14,0.00027397,2]
[426016335,1782118248000,-483.37817061,0.00027397,2]
[426016340,1782118248000,-500.0,0.00027397,2]
[426016332,1782118248000,-500.0,0.00027397,2]
[426016334,1782118248000,-500.0,0.00027397,2]
[426016325,1782118248000,-503.07558064,0.00027397,2]
[426016367,1782118248000,-500.50446447,0.00027397,2]
[426016371,1782118248000,-500.0,0.00027397,2]
[426016370,1782118248000,-500.0,0.00027397,2]
[426016401,1782118248000,-166.842779,0.00027397,2]
[426016403,1782118248000,-500.0,0.00027397,2]
[426016410,1782118248000,-500.0,0.00027397,2]
[426016407,1782118248000,-500.0,0.00027397,2]
[426016404,1782118248000,-4107.37,0.00027397,2]
[426016405,1782118248000,-166.842779,0.00027397,2]
[426016406,1782118248000,-166.842779,0.00027397,2]
[426016408,1782118248000,-503.94422475,0.00027397,2]
[426016409,1782118248000,-500.0,0.00027397,2]
[426016411,1782118248000,-166.842779,0.00027397,2]
[426016413,1782118248000,-500.0,0.00027397,2]
[426016423,1782118248000,-500.0,0.00027397,2]
[426016421,1782118248000,-500.0,0.00027397,2]
[426016412,1782118248000,-166.842779,0.00027397,2]
[426016422,1782118248000,-500.0,0.00027397,2]
[426016414,1782118248000,-500.0,0.00027397,2]
[426016415,1782118248000,-803.96,0.00027397,2]
[426016416,1782118248000,-166.842779,0.00027397,2]
[426016420,1782118248000,-505.09295003,0.00027397,2]
[426016418,1782118248000,-500.0,0.00027397,2]
[426016419,1782118248000,-500.0,0.00027397,2]
[426016425,1782118248000,-739.86,0.00027397,2]
[426016424,1782118248000,-500.0,0.00027397,2]
[426016427,1782118248000,-723.93,0.00027397,2]
[426016426,1782118248000,-500.0,0.00027397,2]
[426016402,1782118248000,-166.842779,0.00027397,2]
[426016399,1782118248000,-500.0,0.00027397,2]
[426016417,1782118248000,-166.842779,0.00027397,2]
[426016397,1782118248000,-500.0,0.00027397,2]
[426016394,1782118248000,-500.0,0.00027397,2]
[426016375,1782118248000,-500.0,0.00027397,2]
[426016376,1782118248000,-266.00859762,0.00027397,2]
[426016374,1782118248000,-500.0,0.00027397,2]
[426016373,1782118248000,-500.0,0.00027397,2]
[426016369,1782118248000,-500.0,0.00027397,2]
[426016372,1782118248000,-585.59,0.00027397,2]
[426016378,1782118248000,-500.0,0.00027397,2]
[426016380,1782118248000,-500.0,0.00027397,2]
[426016383,1782118248000,-500.0,0.00027397,2]
[426016384,1782118248000,-500.0,0.00027397,2]
[426016381,1782118248000,-500.0,0.00027397,2]
[426016386,1782118248000,-500.0,0.00027397,2]
[426016368,1782118248000,-599.37,0.00027397,2]
[426016387,1782118248000,-508.34069325,0.00027397,2]
[426016385,1782118248000,-523.88,0.00027397,2]
[426016392,1782118248000,-500.0,0.00027397,2]
[426016395,1782118248000,-500.0,0.00027397,2]
[426016393,1782118248000,-500.0,0.00027397,2]
[426016398,1782118248000,-575.02532687,0.00027397,2]
[426016389,1782118248000,-500.0,0.00027397,2]
[426016396,1782118248000,-500.0,0.00027397,2]
[426016391,1782118248000,-753.33,0.00027397,2]
[426016400,1782118248000,-500.0,0.00027397,2]
[426016390,1782118248000,-551.00161206,0.00027397,2]
[426016379,1782118248000,-500.0,0.00027397,2]
[426016382,1782118248000,-500.0,0.00027397,2]
[426016388,1782118248000,-500.0,0.00027397,2]
[426016456,1782118249000,-552.91868957,0.00027397,2]
[426016454,1782118249000,-500.0,0.00027397,2]
[426016461,1782118249000,-500.0,0.00027397,2]
[426016457,1782118249000,-505.40439372,0.00027397,2]
[426016458,1782118249000,-500.0,0.00027397,2]
[426016460,1782118249000,-500.0,0.00027397,2]
[426016455,1782118249000,-500.0,0.00027397,2]
[426016453,1782118249000,-500.0,0.00027397,2]
[426016462,1782118249000,-3359.12,0.00027397,2]
[426016467,1782118249000,-152.86225827,0.00027397,2]
[426016464,1782118249000,-500.0,0.00027397,2]
[426016463,1782118249000,-638.73711037,0.00027397,2]
[426016465,1782118249000,-500.0,0.00027397,2]
[426016452,1782118249000,-500.0,0.00027397,2]
[426016466,1782118249000,-500.0,0.00027397,2]
[426016472,1782118249000,-500.0,0.00027397,2]
[426016473,1782118249000,-500.0,0.00027397,2]
[426016468,1782118249000,-500.0,0.00027397,2]
[426016469,1782118249000,-513.97839127,0.00027397,2]
[426016459,1782118249000,-536.29,0.00027397,2]
[426016447,1782118249000,-500.0,0.00027397,2]
[426016443,1782118249000,-500.0,0.00027397,2]
[426016446,1782118249000,-500.0,0.00027397,2]
[426016470,1782118249000,-500.0,0.00027397,2]
[426016428,1782118249000,-500.0,0.00027397,2]
[426016429,1782118249000,-500.0,0.00027397,2]
[426016430,1782118249000,-542.93,0.00027397,2]
[426016431,1782118249000,-529.28261071,0.00027397,2]
[426016437,1782118249000,-500.0,0.00027397,2]
[426016435,1782118249000,-751.33,0.00027397,2]
[426016439,1782118249000,-500.0,0.00027397,2]
[426016440,1782118249000,-536.80854169,0.00027397,2]
[426016448,1782118249000,-500.0,0.00027397,2]
[426016434,1782118249000,-500.0,0.00027397,2]
[426016432,1782118249000,-500.0,0.00027397,2]
[426016438,1782118249000,-512.52015993,0.00027397,2]
[426016441,1782118249000,-500.0,0.00027397,2]
[426016449,1782118249000,-951.64,0.00027397,2]
[426016442,1782118249000,-500.0,0.00027397,2]
[426016451,1782118249000,-557.61236632,0.00027397,2]
[426016450,1782118249000,-500.0,0.00027397,2]
[426016444,1782118249000,-520.85726512,0.00027397,2]
[426016445,1782118249000,-500.0,0.00027397,2]
[426016436,1782118249000,-500.08579825,0.00027397,2]
[426016433,1782118249000,-500.0,0.00027397,2]
[426016471,1782118249000,-500.0,0.00027397,2]
[426016476,1782118249000,-1224.66,0.00027397,2]
[426016500,1782118249000,-500.0,0.00027397,2]
[426016506,1782118249000,-539.1,0.00027397,2]
[426016502,1782118249000,-500.0,0.00027397,2]
[426016499,1782118249000,-500.0,0.00027397,2]
[426016503,1782118249000,-500.0,0.00027397,2]
[426016505,1782118249000,-500.0,0.00027397,2]
[426016508,1782118249000,-500.0,0.00027397,2]
[426016510,1782118249000,-500.0,0.00027397,2]
[426016511,1782118249000,-500.0,0.00027397,2]
[426016498,1782118249000,-500.0,0.00027397,2]
[426016507,1782118249000,-500.0,0.00027397,2]
[426016516,1782118249000,-180.50784352,0.00027397,2]
[426016513,1782118249000,-500.0,0.00027397,2]
[426016514,1782118249000,-500.0,0.00027397,2]
[426016517,1782118249000,-545.8955684,0.00027397,2]
[426016515,1782118249000,-509.93381717,0.00027397,2]
[426016518,1782118249000,-500.0,0.00027397,2]
[426016519,1782118249000,-506.64318036,0.00027397,2]
[426016520,1782118249000,-836.05,0.00027397,2]
[426016474,1782118249000,-500.0,0.00027397,2]
[426016509,1782118249000,-776.0,0.00027397,2]
[426016501,1782118249000,-500.0,0.00027397,2]
[426016512,1782118249000,-500.0,0.00027397,2]
[426016497,1782118249000,-500.0,0.00027397,2]
[426016478,1782118249000,-500.0,0.00027397,2]
[426016504,1782118249000,-500.0,0.00027397,2]
[426016480,1782118249000,-500.0,0.00027397,2]
[426016483,1782118249000,-151.0,0.00027397,2]
[426016475,1782118249000,-500.0,0.00027397,2]
[426016481,1782118249000,-500.0,0.00027397,2]
[426016479,1782118249000,-500.0,0.00027397,2]
[426016482,1782118249000,-151.0,0.00027397,2]
[426016484,1782118249000,-500.0,0.00027397,2]
[426016486,1782118249000,-500.0,0.00027397,2]
[426016477,1782118249000,-500.0,0.00027397,2]
[426016489,1782118249000,-503.95838354,0.00027397,2]
[426016488,1782118249000,-500.0,0.00027397,2]
[426016487,1782118249000,-152.44113694,0.00027397,2]
[426016495,1782118249000,-500.0,0.00027397,2]
[426016491,1782118249000,-500.0,0.00027397,2]
[426016493,1782118249000,-664.27,0.00027397,2]
[426016494,1782118249000,-500.0,0.00027397,2]
[426016490,1782118249000,-500.0,0.00027397,2]
[426016485,1782118249000,-656.6,0.00027397,2]
[426016492,1782118249000,-542.8,0.00027397,2]
[426016496,1782118249000,-583.02479477,0.00027397,2]
[426016559,1782118250000,-500.0,0.00027397,2]
[426016561,1782118250000,-662.21,0.00027397,2]
[426016558,1782118250000,-500.0,0.00027397,2]
[426016557,1782118250000,-691.26,0.00027397,2]
[426016560,1782118250000,-500.0,0.00027397,2]
[426016555,1782118250000,-500.0,0.00027397,2]
[426016526,1782118250000,-300.0,0.00027397,3]
[426016554,1782118250000,-307.76002169,0.00027397,2]
[426016552,1782118250000,-500.0,0.00027397,2]
[426016562,1782118250000,-500.0,0.00027397,2]
[426016563,1782118250000,-1100.03,0.00027397,2]
[426016556,1782118250000,-500.0,0.00027397,2]
[426016564,1782118250000,-698.68,0.00027397,2]
[426016574,1782118250000,-636.11332695,0.00027397,2]
[426016565,1782118250000,-500.0,0.00027397,2]
[426016568,1782118250000,-624.72,0.00027397,2]
[426016569,1782118250000,-500.0,0.00027397,2]
[426016575,1782118250000,-761.7,0.00027397,2]
[426016571,1782118250000,-2003.52,0.00027397,2]
[426016566,1782118250000,-500.0,0.00027397,2]
[426016570,1782118250000,-500.0,0.00027397,2]
[426016572,1782118250000,-500.0,0.00027397,2]
[426016573,1782118250000,-186.01256517,0.00027397,2]
[426016577,1782118250000,-335.34969709,0.00027397,2]
[426016576,1782118250000,-500.0,0.00027397,2]
[426016553,1782118250000,-500.0,0.00027397,2]
[426016567,1782118250000,-621.2,0.00027397,2]
[426016549,1782118250000,-500.0,0.00027397,2]
[426016523,1782118250000,-300.0,0.00027397,3]
[426016546,1782118250000,-500.0,0.00027397,2]
[426016522,1782118250000,-500.0,0.00027397,2]
[426016521,1782118250000,-503.57161291,0.00027397,2]
[426016529,1782118250000,-300.0,0.00027397,3]
[426016524,1782118250000,-500.0,0.00027397,2]
[426016527,1782118250000,-300.0,0.00027397,3]
[426016525,1782118250000,-300.0,0.00027397,3]
[426016528,1782118250000,-500.0,0.00027397,2]
[426016531,1782118250000,-500.0,0.00027397,2]
[426016530,1782118250000,-508.76862032,0.00027397,2]
[426016532,1782118250000,-500.0,0.00027397,2]
[426016534,1782118250000,-500.0,0.00027397,2]
[426016539,1782118250000,-500.0,0.00027397,2]
[426016535,1782118250000,-500.0,0.00027397,2]
[426016533,1782118250000,-500.0,0.00027397,2]
[426016536,1782118250000,-823.84,0.00027397,2]
[426016537,1782118250000,-500.0,0.00027397,2]
[426016538,1782118250000,-500.0,0.00027397,2]
[426016540,1782118250000,-571.2,0.00027397,2]
[426016541,1782118250000,-613.87,0.00027397,2]
[426016544,1782118250000,-500.0,0.00027397,2]
[426016542,1782118250000,-500.0,0.00027397,2]
[426016543,1782118250000,-500.0,0.00027397,2]
[426016548,1782118250000,-500.0,0.00027397,2]
[426016547,1782118250000,-500.0,0.00027397,2]
[426016551,1782118250000,-518.58667628,0.00027397,2]
[426016550,1782118250000,-500.0,0.00027397,2]
[426016545,1782118250000,-604.95906211,0.00027397,2]
[426016581,1782118250000,-500.0,0.00027397,2]
[426016580,1782118250000,-538.75,0.00027397,2]
[426016605,1782118250000,-500.0,0.00027397,2]
[426016587,1782118250000,-500.0,0.00027397,2]
[426016615,1782118250000,-1222.37,0.00027397,2]
[426016618,1782118250000,-500.0,0.00027397,2]
[426016619,1782118250000,-500.0,0.00027397,2]
[426016621,1782118250000,-500.0,0.00027397,2]
[426016624,1782118250000,-640.75020152,0.00027397,2]
[426016620,1782118250000,-507.12362358,0.00027397,2]
[426016617,1782118250000,-500.0,0.00027397,2]
[426016616,1782118250000,-500.0,0.00027397,2]
[426016625,1782118250000,-500.0,0.00027397,2]
[426016623,1782118250000,-500.0,0.00027397,2]
[426016622,1782118250000,-500.0,0.00027397,2]
[426016637,1782118250000,-500.0,0.00027397,2]
[426016627,1782118250000,-500.0,0.00027397,2]
[426016629,1782118250000,-500.0,0.00027397,2]
[426016639,1782118250000,-2000.0,0.00027397,2]
[426016626,1782118250000,-500.0,0.00027397,2]
[426016638,1782118250000,-522.05879216,0.00027397,2]
[426016628,1782118250000,-500.0,0.00027397,2]
[426016630,1782118250000,-526.10718925,0.00027397,2]
[426016635,1782118250000,-500.0,0.00027397,2]
[426016634,1782118250000,-814.11,0.00027397,2]
[426016632,1782118250000,-500.0,0.00027397,2]
[426016633,1782118250000,-500.0,0.00027397,2]
[426016636,1782118250000,-500.0,0.00027397,2]
[426016631,1782118250000,-533.69,0.00027397,2]
[426016640,1782118250000,-500.0,0.00027397,2]
[426016578,1782118250000,-500.0,0.00027397,2]
[426016611,1782118250000,-507.12137947,0.00027397,2]
[426016608,1782118250000,-500.0,0.00027397,2]
[426016609,1782118250000,-7491.46,0.00027397,2]
[426016610,1782118250000,-500.0,0.00027397,2]
[426016607,1782118250000,-500.0,0.00027397,2]
[426016579,1782118250000,-500.0,0.00027397,2]
[426016582,1782118250000,-500.0,0.00027397,2]
[426016583,1782118250000,-500.0,0.00027397,2]
[426016584,1782118250000,-500.0,0.00027397,2]
[426016585,1782118250000,-500.0,0.00027397,2]
[426016586,1782118250000,-500.0,0.00027397,2]
[426016589,1782118250000,-500.0,0.00027397,2]
[426016594,1782118250000,-1260.42,0.00027397,2]
[426016590,1782118250000,-529.3,0.00027397,2]
[426016595,1782118250000,-569.95742083,0.00027397,2]
[426016592,1782118250000,-923.44,0.00027397,2]
[426016591,1782118250000,-654.31,0.00027397,2]
[426016588,1782118250000,-1327.43,0.00027397,2]
[426016597,1782118250000,-158.29196,0.00027397,2]
[426016612,1782118250000,-3541.58,0.00027397,2]
[426016604,1782118250000,-721.65,0.00027397,2]
[426016613,1782118250000,-500.0,0.00027397,2]
[426016606,1782118250000,-631.27448373,0.00027397,2]
[426016599,1782118250000,-500.0,0.00027397,2]
[426016614,1782118250000,-500.0,0.00027397,2]
[426016603,1782118250000,-500.0,0.00027397,2]
[426016600,1782118250000,-500.0,0.00027397,2]
[426016598,1782118250000,-500.0,0.00027397,2]
[426016593,1782118250000,-500.0,0.00027397,2]
[426016601,1782118250000,-507.30397818,0.00027397,2]
[426016596,1782118250000,-500.0,0.00027397,2]
[426016602,1782118250000,-500.0,0.00027397,2]
[426016677,1782118251000,-500.0,0.00027397,2]
[426016679,1782118251000,-565.2123924,0.00027397,2]
[426016678,1782118251000,-500.0,0.00027397,2]
[426016676,1782118251000,-500.0,0.00027397,2]
[426016667,1782118251000,-500.0,0.00027397,2]
[426016668,1782118251000,-500.0,0.00027397,2]
[426016670,1782118251000,-3619.69,0.00027397,2]
[426016669,1782118251000,-500.0,0.00027397,2]
[426016671,1782118251000,-500.0,0.00027397,2]
[426016682,1782118251000,-1487.43,0.00027397,2]
[426016672,1782118251000,-7269.9,0.00027397,2]
[426016680,1782118251000,-570.39028173,0.00027397,2]
[426016699,1782118251000,-500.0,0.00027397,2]
[426016684,1782118251000,-500.0,0.00027397,2]
[426016681,1782118251000,-500.0,0.00027397,2]
[426016685,1782118251000,-980.0,0.00027397,2]
[426016686,1782118251000,-500.0,0.00027397,2]
[426016689,1782118251000,-500.0,0.00027397,2]
[426016688,1782118251000,-4947.53,0.00027397,2]
[426016690,1782118251000,-500.0,0.00027397,2]
[426016693,1782118251000,-571.02,0.00027397,2]
[426016691,1782118251000,-500.0,0.00027397,2]
[426016692,1782118251000,-500.0,0.00027397,2]
[426016698,1782118251000,-500.0,0.00027397,2]
[426016666,1782118251000,-500.0,0.00027397,2]
[426016687,1782118251000,-2693.74,0.00027397,2]
[426016674,1782118251000,-500.0,0.00027397,2]
[426016656,1782118251000,-1524.68,0.00027397,2]
[426016675,1782118251000,-150.46187624,0.00027397,2]
[426016644,1782118251000,-500.0,0.00027397,2]
[426016645,1782118251000,-500.0,0.00027397,2]
[426016643,1782118251000,-869.72,0.00027397,2]
[426016646,1782118251000,-1477.52,0.00027397,2]
[426016647,1782118251000,-500.0,0.00027397,2]
[426016642,1782118251000,-501.50182018,0.00027397,2]
[426016641,1782118251000,-1215.39,0.00027397,2]
[426016651,1782118251000,-504.24261004,0.00027397,2]
[426016649,1782118251000,-151.0,0.00027397,2]
[426016648,1782118251000,-151.0,0.00027397,2]
[426016650,1782118251000,-441.42235479,0.00027397,2]
[426016652,1782118251000,-500.0,0.00027397,2]
[426016654,1782118251000,-500.0,0.00027397,2]
[426016694,1782118251000,-500.0,0.00027397,2]
[426016657,1782118251000,-500.0,0.00027397,2]
[426016658,1782118251000,-739.36,0.00027397,2]
[426016655,1782118251000,-500.0,0.00027397,2]
[426016653,1782118251000,-500.0,0.00027397,2]
[426016661,1782118251000,-500.0,0.00027397,2]
[426016660,1782118251000,-502.20694392,0.00027397,2]
[426016659,1782118251000,-500.0,0.00027397,2]
[426016662,1782118251000,-500.0,0.00027397,2]
[426016663,1782118251000,-500.0,0.00027397,2]
[426016665,1782118251000,-500.0,0.00027397,2]
[426016673,1782118251000,-500.0,0.00027397,2]
[426016664,1782118251000,-524.42,0.00027397,2]
[426016696,1782118251000,-500.0,0.00027397,2]
[426016683,1782118251000,-500.0,0.00027397,2]
[426016695,1782118251000,-500.0,0.00027397,2]
[426016726,1782118251000,-500.0,0.00027397,2]
[426016729,1782118251000,-507.13,0.00027397,2]
[426016730,1782118251000,-569.65,0.00027397,2]
[426016735,1782118251000,-561.33,0.00027397,2]
[426016727,1782118251000,-669.21,0.00027397,2]
[426016731,1782118251000,-823.1,0.00027397,2]
[426016732,1782118251000,-500.0,0.00027397,2]
[426016737,1782118251000,-7294.75,0.00027397,2]
[426016739,1782118251000,-503.58794671,0.00027397,2]
[426016738,1782118251000,-806.07,0.00027397,2]
[426016740,1782118251000,-500.0,0.00027397,2]
[426016736,1782118251000,-500.0,0.00027397,2]
[426016734,1782118251000,-500.0,0.00027397,2]
[426016742,1782118251000,-500.0,0.00027397,2]
[426016745,1782118251000,-500.0,0.00027397,2]
[426016741,1782118251000,-500.0,0.00027397,2]
[426016746,1782118251000,-500.0,0.00027397,2]
[426016744,1782118251000,-705.3,0.00027397,2]
[426016747,1782118251000,-500.0,0.00027397,2]
[426016753,1782118251000,-6210.96,0.00027397,2]
[426016748,1782118251000,-500.0,0.00027397,2]
[426016749,1782118251000,-500.0,0.00027397,2]
[426016751,1782118251000,-500.0,0.00027397,2]
[426016750,1782118251000,-1302.58,0.00027397,2]
[426016752,1782118251000,-500.0,0.00027397,2]
[426016697,1782118251000,-557.73349456,0.00027397,2]
[426016743,1782118251000,-500.0,0.00027397,2]
[426016733,1782118251000,-500.0,0.00027397,2]
[426016754,1782118251000,-500.0,0.00027397,2]
[426016725,1782118251000,-500.0,0.00027397,2]
[426016728,1782118251000,-931.05,0.00027397,2]
[426016703,1782118251000,-500.0,0.00027397,2]
[426016702,1782118251000,-500.0,0.00027397,2]
[426016709,1782118251000,-500.0,0.00027397,2]
[426016708,1782118251000,-625.21668364,0.00027397,2]
[426016707,1782118251000,-500.0,0.00027397,2]
[426016711,1782118251000,-500.0,0.00027397,2]
[426016710,1782118251000,-500.0,0.00027397,2]
[426016704,1782118251000,-500.0,0.00027397,2]
[426016701,1782118251000,-500.0,0.00027397,2]
[426016706,1782118251000,-500.0,0.00027397,2]
[426016705,1782118251000,-5008.57,0.00027397,2]
[426016700,1782118251000,-500.0,0.00027397,2]
[426016721,1782118251000,-500.0,0.00027397,2]
[426016713,1782118251000,-575.67,0.00027397,2]
[426016712,1782118251000,-500.0,0.00027397,2]
[426016724,1782118251000,-500.0,0.00027397,2]
[426016714,1782118251000,-500.0,0.00027397,2]
[426016716,1782118251000,-154.02699061,0.00027397,30]
[426016715,1782118251000,-500.0,0.00027397,2]
[426016717,1782118251000,-500.0,0.00027397,2]
[426016723,1782118251000,-645.46,0.00027397,2]
[426016718,1782118251000,-500.0,0.00027397,2]
[426016720,1782118251000,-614.75,0.00027397,2]
[426016719,1782118251000,-911.74,0.00027397,2]
[426016722,1782118251000,-500.0,0.00027397,2]
[426016792,1782118252000,-617.13345567,0.00027397,2]
[426016807,1782118252000,-500.0,0.00027397,2]
[426016791,1782118252000,-500.0,0.00027397,2]
[426016794,1782118252000,-500.0,0.00027397,2]
[426016796,1782118252000,-500.0,0.00027397,2]
[426016783,1782118252000,-500.0,0.00027397,2]
[426016782,1782118252000,-501.28924791,0.00027397,2]
[426016784,1782118252000,-2134.45,0.00027397,2]
[426016786,1782118252000,-500.0,0.00027397,2]
[426016785,1782118252000,-538.73,0.00027397,2]
[426016789,1782118252000,-516.33011932,0.00027397,2]
[426016790,1782118252000,-500.0,0.00027397,2]
[426016811,1782118252000,-500.0,0.00027397,2]
[426016797,1782118252000,-500.0,0.00027397,2]
[426016795,1782118252000,-500.0,0.00027397,2]
[426016799,1782118252000,-500.0,0.00027397,2]
[426016798,1782118252000,-5765.88,0.00027397,2]
[426016801,1782118252000,-500.0,0.00027397,2]
[426016802,1782118252000,-500.0,0.00027397,2]
[426016800,1782118252000,-500.0,0.00027397,2]
[426016805,1782118252000,-763.71,0.00027397,2]
[426016809,1782118252000,-500.0,0.00027397,2]
[426016804,1782118252000,-500.0,0.00027397,2]
[426016808,1782118252000,-500.0,0.00027397,2]
[426016780,1782118252000,-500.0,0.00027397,2]
[426016793,1782118252000,-576.18,0.00027397,2]
[426016781,1782118252000,-504.20638344,0.00027397,2]
[426016768,1782118252000,-500.0,0.00027397,2]
[426016778,1782118252000,-500.0,0.00027397,2]
[426016806,1782118252000,-500.0,0.00027397,2]
[426016760,1782118252000,-500.0,0.00027397,2]
[426016758,1782118252000,-500.0,0.00027397,2]
[426016762,1782118252000,-520.61022537,0.00027397,2]
[426016755,1782118252000,-500.0,0.00027397,2]
[426016756,1782118252000,-1476.94,0.00027397,2]
[426016757,1782118252000,-500.0,0.00027397,2]
[426016761,1782118252000,-500.0,0.00027397,2]
[426016759,1782118252000,-500.0,0.00027397,2]
[426016763,1782118252000,-541.25,0.00027397,2]
[426016764,1782118252000,-500.0,0.00027397,2]
[426016766,1782118252000,-500.0,0.00027397,2]
[426016769,1782118252000,-500.0,0.00027397,2]
[426016765,1782118252000,-500.0,0.00027397,2]
[426016775,1782118252000,-500.0,0.00027397,2]
[426016767,1782118252000,-500.0,0.00027397,2]
[426016771,1782118252000,-500.0,0.00027397,2]
[426016773,1782118252000,-851.69,0.00027397,2]
[426016770,1782118252000,-500.0,0.00027397,2]
[426016772,1782118252000,-500.0,0.00027397,2]
[426016774,1782118252000,-500.0,0.00027397,2]
[426016777,1782118252000,-159.52605595,0.00027397,2]
[426016788,1782118252000,-500.0,0.00027397,2]
[426016787,1782118252000,-500.0,0.00027397,2]
[426016776,1782118252000,-3112.0,0.00027397,2]
[426016779,1782118252000,-500.0,0.00027397,2]
[426016810,1782118252000,-500.0,0.00027397,2]
[426016803,1782118252000,-500.0,0.00027397,2]
[426016814,1782118252000,-500.0,0.00027397,2]
[426016846,1782118252000,-2905.47,0.00027397,2]
[426016843,1782118252000,-695.9,0.00027397,2]
[426016837,1782118252000,-500.0,0.00027397,2]
[426016842,1782118252000,-500.6756185,0.00027397,2]
[426016848,1782118252000,-500.0,0.00027397,2]
[426016858,1782118252000,-500.0,0.00027397,2]
[426016847,1782118252000,-916.73,0.00027397,2]
[426016850,1782118252000,-500.0,0.00027397,2]
[426016849,1782118252000,-500.0,0.00027397,2]
[426016853,1782118252000,-730.21,0.00027397,2]
[426016851,1782118252000,-500.0,0.00027397,2]
[426016857,1782118252000,-500.0,0.00027397,2]
[426016854,1782118252000,-500.0,0.00027397,2]
[426016852,1782118252000,-509.39,0.00027397,2]
[426016856,1782118252000,-503.93281933,0.00027397,2]
[426016855,1782118252000,-500.0,0.00027397,2]